fUSD/lending_fUSD_20260615
["ID","MTS","AMOUNT","RATE_DAILY","PERIOD"]
[425117107,1781530233000,-112051.27136984,0.00012632,2]
[425117096,1781530233000,-300.0,0.000126,2]
[425117101,1781530233000,-151.0,0.00012629,2]
[425117099,1781530233000,-151.0,0.00012629,2]
[425117100,1781530233000,-151.0,0.00012629,2]
[425117102,1781530233000,-300.0,0.00012631,2]
[425117103,1781530233000,-300.0,0.00012631,2]
[425117141,1781530238000,-166.66,0.00013513,2]
[425117152,1781530238000,-500.0,0.00013698,2]
[425117148,1781530238000,-500.0,0.00013698,2]
[425117149,1781530238000,-500.0,0.00013698,2]
[425117146,1781530238000,-580.74875671,0.00013698,2]
[425117145,1781530238000,-500.0,0.00013698,2]
[425117144,1781530238000,-433.0,0.00013635,2]
[425117143,1781530238000,-1400.87,0.00013616,2]
[425117140,1781530238000,-300.0,0.000135,2]
[425117139,1781530238000,-2000.0,0.00013463,2]
[425117142,1781530238000,-300.0,0.000136,2]
[425117130,1781530238000,-2500000.0,0.00012632,2]
[425117137,1781530238000,-853.8,0.00013374,2]
[425117136,1781530238000,-300.0,0.000132,2]
[425117132,1781530238000,-300.0,0.000128,2]
[425117135,1781530238000,-166.66,0.00013108,2]
[425117147,1781530238000,-500.0,0.00013698,2]
[425117131,1781530238000,-166.66,0.00012702,2]
[425117133,1781530238000,-1482.53,0.00012861,2]
[425117129,1781530238000,-1379871.71941579,0.00012632,2]
[425117128,1781530238000,-197.25921078,0.00012632,2]
[425117127,1781530238000,-3289.46854879,0.00012602,2]
[425117138,1781530238000,-300.0,0.000134,2]
[425117150,1781530238000,-500.0,0.00013698,2]
[425117134,1781530238000,-300.0,0.000131,2]
[425117154,1781530238000,-500.0,0.00013698,2]
[425117151,1781530238000,-500.0,0.00013698,2]
[425117174,1781530238000,-22348.53274402,0.0001399,2]
[425117169,1781530238000,-150.0,0.000138,2]
[425117172,1781530238000,-166.66,0.00013919,2]
[425117176,1781530238000,-1800.0,0.00014,2]
[425117175,1781530238000,-250.0,0.00014,2]
[425117173,1781530238000,-1400.87,0.00013971,2]
[425117171,1781530238000,-1400.87,0.00013906,2]
[425117170,1781530238000,-1400.87,0.00013821,2]
[425117164,1781530238000,-9999.99,0.00013699,2]
[425117166,1781530238000,-300.0,0.000137,2]
[425117162,1781530238000,-500.0,0.00013698,2]
[425117177,1781530238000,-1400.87,0.00014025,2]
[425117165,1781530238000,-150.99,0.00013699,2]
[425117168,1781530238000,-782.626196,0.00013754,2]
[425117155,1781530238000,-500.0,0.00013698,2]
[425117156,1781530238000,-500.0,0.00013698,2]
[425117158,1781530238000,-500.0,0.00013698,2]
[425117157,1781530238000,-500.0,0.00013698,2]
[425117160,1781530238000,-500.0,0.00013698,2]
[425117161,1781530238000,-500.0,0.00013698,2]
[425117163,1781530238000,-500.0,0.00013698,2]
[425117167,1781530238000,-741.93,0.000137,2]
[425117159,1781530238000,-500.0,0.00013698,2]
[425117153,1781530238000,-500.0,0.00013698,2]
[425117203,1781530239000,-1400.87,0.00014409,2]
[425117213,1781530239000,-1400.87,0.00014576,2]
[425117204,1781530239000,-49667.97564854,0.00014414,2]
[425117206,1781530239000,-1400.87,0.0001446,2]
[425117205,1781530239000,-1400.87,0.00014435,2]
[425117207,1781530239000,-1400.87,0.00014485,2]
[425117209,1781530239000,-1400.87,0.00014508,2]
[425117208,1781530239000,-150.0,0.000145,2]
[425117215,1781530239000,-1400.87,0.00014619,2]
[425117210,1781530239000,-1400.87,0.00014532,2]
[425117217,1781530239000,-1400.87,0.0001466,2]
[425117211,1781530239000,-636.59460219,0.0001455,2]
[425117214,1781530239000,-1400.87,0.00014598,2]
[425117216,1781530239000,-1400.87,0.0001464,2]
[425117219,1781530239000,-1400.87,0.00014699,2]
[425117223,1781530239000,-1400.87,0.00014756,2]
[425117221,1781530239000,-1400.87,0.00014719,2]
[425117224,1781530239000,-1400.87,0.00014774,2]
[425117218,1781530239000,-1400.87,0.0001468,2]
[425117220,1781530239000,-150.0,0.000147,2]
[425117222,1781530239000,-1400.87,0.00014737,2]
[425117212,1781530239000,-1400.87,0.00014554,2]
[425117202,1781530239000,-150.0,0.000144,2]
[425117190,1781530239000,-152.67,0.00014173,2]
[425117198,1781530239000,-1400.87,0.00014325,2]
[425117225,1781530239000,-1400.87,0.00014792,2]
[425117185,1781530239000,-390.151522,0.00014126,2]
[425117187,1781530239000,-220.775104,0.00014126,2]
[425117186,1781530239000,-372.132531,0.00014126,2]
[425117178,1781530239000,-1400.87,0.00014074,2]
[425117179,1781530239000,-150.0,0.000141,2]
[425117181,1781530239000,-151.73,0.00014119,2]
[425117182,1781530239000,-500.0,0.00014125,2]
[425117180,1781530239000,-1400.87,0.00014118,2]
[425117184,1781530239000,-180.730597,0.00014126,2]
[425117183,1781530239000,-189.481736,0.00014126,2]
[425117188,1781530239000,-231.465234,0.00014126,2]
[425117192,1781530239000,-150.0,0.000142,2]
[425117191,1781530239000,-1400.87,0.00014195,2]
[425117189,1781530239000,-1400.87,0.00014158,2]
[425117195,1781530239000,-1482.53,0.0001429,2]
[425117196,1781530239000,-1400.87,0.00014295,2]
[425117194,1781530239000,-1400.87,0.00014263,2]
[425117193,1781530239000,-1400.87,0.0001423,2]
[425117197,1781530239000,-150.0,0.000143,2]
[425117199,1781530239000,-166.66,0.00014325,2]
[425117201,1781530239000,-1400.87,0.00014382,2]
[425117226,1781530239000,-150.0,0.000148,2]
[425117200,1781530239000,-1400.87,0.00014354,2]
[425117229,1781530239000,-1400.87,0.00014844,2]
[425117253,1781530239000,-386.0,0.000151,2]
[425117257,1781530239000,-1500.0,0.00015358,2]
[425117256,1781530239000,-49667.97564854,0.00015355,2]
[425117259,1781530239000,-3168.72959774,0.000155,2]
[425117260,1781530239000,-245.67876327,0.00015512,2]
[425117258,1781530239000,-3168.72959774,0.000154,2]
[425117261,1781530239000,-214.738116,0.00015538,2]
[425117262,1781530239000,-241.900187,0.00015538,2]
[425117264,1781530239000,-176.273303,0.00015693,2]
[425117263,1781530239000,-184.808615,0.00015616,2]
[425117265,1781530239000,-3168.72959774,0.000157,2]
[425117267,1781530239000,-500.0,0.00015798,2]
[425117266,1781530239000,-1482.53,0.00015719,2]
[425117268,1781530239000,-3168.72959774,0.000158,2]
[425117270,1781530239000,-300.0,0.00015826,7]
[425117275,1781530239000,-23662.94099948,0.00016156,2]
[425117269,1781530239000,-1050.0,0.00015826,2]
[425117272,1781530239000,-300.0,0.00016,2]
[425117271,1781530239000,-1555.5,0.00015906,2]
[425117274,1781530239000,-8966.57792132,0.00016156,2]
[425117227,1781530239000,-1400.87,0.0001481,2]
[425117252,1781530239000,-275.86,0.00015068,2]
[425117255,1781530239000,-250.0,0.00015255,2]
[425117273,1781530239000,-3168.72959774,0.00016,2]
[425117251,1781530239000,-150.0,0.00015068,2]
[425117231,1781530239000,-1400.87,0.00014861,2]
[425117234,1781530239000,-150.0,0.000149,2]
[425117232,1781530239000,-1400.87,0.00014878,2]
[425117233,1781530239000,-1400.87,0.00014895,2]
[425117235,1781530239000,-736.0,0.00014902,2]
[425117230,1781530239000,-853.8,0.0001486,2]
[425117254,1781530239000,-741.93,0.000151,2]
[425117238,1781530239000,-1400.87,0.00014943,2]
[425117242,1781530239000,-4000.0,0.00015,2]
[425117239,1781530239000,-1400.87,0.00014959,2]
[425117240,1781530239000,-1400.87,0.00014974,2]
[425117237,1781530239000,-1400.87,0.00014927,2]
[425117250,1781530239000,-1400.87,0.00015049,2]
[425117243,1781530239000,-14061.19,0.00015,2]
[425117249,1781530239000,-1400.87,0.00015035,2]
[425117247,1781530239000,-1400.87,0.00015005,2]
[425117248,1781530239000,-1400.87,0.0001502,2]
[425117228,1781530239000,-1400.87,0.00014827,2]
[425117246,1781530239000,-578.75,0.00015,2]
[425117244,1781530239000,-150.0,0.00015,2]
[425117241,1781530239000,-1400.87,0.00014989,2]
[425117245,1781530239000,-1990.0,0.00015,3]
[425117236,1781530239000,-1400.87,0.00014911,2]
[425117305,1781530240000,-631.0,0.00017505,2]
[425117307,1781530240000,-1734.62772924,0.0001755,2]
[425117306,1781530240000,-1240.606,0.00017505,2]
[425117299,1781530240000,-500.0,0.00017236,2]
[425117301,1781530240000,-450.997512,0.00017236,2]
[425117310,1781530240000,-350.0,0.00018,2]
[425117308,1781530240000,-853.8,0.00017832,2]
[425117300,1781530240000,-500.0,0.00017236,2]
[425117322,1781530240000,-1865.36488656,0.00018646,2]
[425117312,1781530240000,-501.0,0.00018,2]
[425117318,1781530240000,-49667.97564854,0.00018177,2]
[425117315,1781530240000,-245.76595542,0.00018,2]
[425117316,1781530240000,-501.0,0.00018,2]
[425117321,1781530240000,-775.4,0.0001841,2]
[425117319,1781530240000,-178.94843,0.00018363,2]
[425117320,1781530240000,-201.583489,0.00018363,2]
[425117328,1781530240000,-741.93,0.000192,2]
[425117303,1781530240000,-1359.0,0.00017505,2]
[425117317,1781530240000,-1798.80895522,0.00018098,2]
[425117304,1781530240000,-1275.0,0.00017505,2]
[425117278,1781530240000,-3168.72959774,0.000162,2]
[425117298,1781530240000,-500.0,0.00017236,2]
[425117329,1781530240000,-1409.0,0.00019583,5]
[425117276,1781530240000,-41744.23278109,0.00016156,2]
[425117279,1781530240000,-847.0,0.00016282,2]
[425117277,1781530240000,-62446.87568193,0.00016156,2]
[425117280,1781530240000,-49667.97564854,0.00016296,2]
[425117283,1781530240000,-775.4,0.00016438,2]
[425117285,1781530240000,-354.30169685,0.00016438,2]
[425117284,1781530240000,-500.0,0.00016438,2]
[425117282,1781530240000,-853.8,0.00016346,2]
[425117302,1781530240000,-49667.97564854,0.00017236,2]
[425117281,1781530240000,-3168.72959774,0.000163,2]
[425117287,1781530240000,-1613.0535,0.00016454,2]
[425117294,1781530240000,-741.93,0.000171,2]
[425117292,1781530240000,-1672.7364795,0.00017002,2]
[425117290,1781530240000,-3168.72959774,0.000168,2]
[425117296,1781530240000,-2924.24,0.00017161,2]
[425117295,1781530240000,-1482.53,0.00017148,2]
[425117289,1781530240000,-3168.72959774,0.000166,2]
[425117288,1781530240000,-3168.72959774,0.000165,2]
[425117297,1781530240000,-153.8194,0.00017189,2]
[425117286,1781530240000,-268.59,0.00016438,2]
[425117323,1781530240000,-318.393704,0.00018744,2]
[425117330,1781530240000,-2204.1785972,0.0001971,2]
[425117327,1781530240000,-1934.38338736,0.00019194,2]
[425117358,1781530240000,-49667.97564854,0.00020059,2]
[425117354,1781530240000,-153.0,0.0002,2]
[425117353,1781530240000,-232.0,0.0002,2]
[425117355,1781530240000,-153.7061673,0.0002,20]
[425117357,1781530240000,-500.0,0.00020049,2]
[425117356,1781530240000,-500.0,0.00020049,2]
[425117360,1781530240000,-200.0,0.0002029,2]
[425117359,1781530240000,-254.37796769,0.000202,2]
[425117361,1781530240000,-151.0,0.0002029,2]
[425117324,1781530240000,-303.688818,0.00018838,2]
[425117364,1781530240000,-1068.11,0.0002029,2]
[425117363,1781530240000,-151.0,0.0002029,2]
[425117366,1781530240000,-151.0,0.0002029,2]
[425117365,1781530240000,-404.46092719,0.0002029,2]
[425117368,1781530240000,-151.0,0.0002029,2]
[425117367,1781530240000,-1107.63007,0.0002029,2]
[425117371,1781530240000,-209.40437684,0.0002029,2]
[425117369,1781530240000,-1148.61238259,0.0002029,2]
[425117370,1781530240000,-151.0,0.0002029,2]
[425117352,1781530240000,-382.0,0.0002,2]
[425117350,1781530240000,-282.0,0.0002,2]
[425117362,1781530240000,-1030.0,0.0002029,2]
[425117347,1781530240000,-969.0,0.0002,2]
[425117351,1781530240000,-200000.0,0.0002,2]
[425117325,1781530240000,-501.0,0.00018886,2]
[425117326,1781530240000,-49667.97564854,0.00019118,2]
[425117331,1781530240000,-153.8194,0.00019711,2]
[425117339,1781530240000,-519.0,0.0002,2]
[425117337,1781530240000,-1661.0,0.0002,2]
[425117333,1781530240000,-501.0,0.00019771,3]
[425117340,1781530240000,-235.0,0.0002,2]
[425117332,1781530240000,-2005.9555727,0.00019742,2]
[425117338,1781530240000,-155.0,0.0002,2]
[425117334,1781530240000,-6000.0,0.00019898,4]
[425117336,1781530240000,-400.0,0.0002,2]
[425117342,1781530240000,-9956.42,0.0002,2]
[425117343,1781530240000,-254.37796769,0.0002,2]
[425117341,1781530240000,-200000.0,0.0002,2]
[425117344,1781530240000,-1479.0,0.0002,2]
[425117349,1781530240000,-155.0,0.0002,2]
[425117348,1781530240000,-154.0,0.0002,2]
[425117345,1781530240000,-941.312626,0.0002,2]
[425117335,1781530240000,-200.0,0.00019943,2]
[425117346,1781530240000,-175.0,0.0002,2]
[425117433,1781530241000,-151.0,0.0002029,2]
[425117422,1781530241000,-500.0,0.0002029,2]
[425117414,1781530241000,-151.0,0.0002029,2]
[425117416,1781530241000,-209.40437684,0.0002029,2]
[425117408,1781530241000,-151.0,0.0002029,2]
[425117420,1781530241000,-151.0,0.0002029,2]
[425117409,1781530241000,-151.0,0.0002029,2]
[425117407,1781530241000,-152.0,0.0002029,2]
[425117434,1781530241000,-500.0,0.0002029,2]
[425117417,1781530241000,-152.0,0.0002029,2]
[425117424,1781530241000,-500.0,0.0002029,2]
[425117441,1781530241000,-151.0,0.0002029,2]
[425117372,1781530241000,-1191.11104074,0.0002029,2]
[425117429,1781530241000,-151.0,0.0002029,2]
[425117432,1781530241000,-152.0,0.0002029,2]
[425117436,1781530241000,-1536.04360648,0.0002029,2]
[425117439,1781530241000,-152.0,0.0002029,2]
[425117443,1781530241000,-1592.87721992,0.0002029,2]
[425117438,1781530241000,-151.0,0.0002029,2]
[425117440,1781530241000,-500.0,0.0002029,2]
[425117442,1781530241000,-500.0,0.0002029,2]
[425117444,1781530241000,-152.0,0.0002029,2]
[425117446,1781530241000,-151.0,0.0002029,2]
[425117435,1781530241000,-500.0,0.0002029,2]
[425117406,1781530241000,-151.0,0.0002029,2]
[425117445,1781530241000,-151.0,0.0002029,2]
[425117404,1781530241000,-2080.17592889,0.0002029,2]
[425117374,1781530241000,-154.67963625,0.0002029,2]
[425117373,1781530241000,-209.40437684,0.0002029,2]
[425117375,1781530241000,-151.0,0.0002029,2]
[425117376,1781530241000,-174.61919141,0.0002029,2]
[425117378,1781530241000,-285.75873744,0.0002029,2]
[425117379,1781530241000,-151.0,0.0002029,2]
[425117377,1781530241000,-151.0,0.0002029,2]
[425117390,1781530241000,-500.0,0.0002029,2]
[425117380,1781530241000,-578.20924308,0.0002029,2]
[425117394,1781530241000,-721.12765534,0.0002029,2]
[425117392,1781530241000,-1328.27659266,0.0002029,2]
[425117398,1781530241000,-151.0,0.0002029,2]
[425117396,1781530241000,-151.0,0.0002029,2]
[425117382,1781530241000,-1235.18214925,0.0002029,2]
[425117386,1781530241000,-1280.88388877,0.0002029,2]
[425117384,1781530241000,-151.0,0.0002029,2]
[425117388,1781530241000,-500.0,0.0002029,2]
[425117400,1781530241000,-151.0,0.0002029,2]
[425117402,1781530241000,-500.0,0.0002029,2]
[425117411,1781530241000,-500.0,0.0002029,2]
[425117401,1781530241000,-500.0,0.0002029,2]
[425117412,1781530241000,-1428.38747117,0.0002029,2]
[425117403,1781530241000,-1377.42282658,0.0002029,2]
[425117410,1781530241000,-500.0,0.0002029,2]
[425117447,1781530241000,-500.0,0.0002029,2]
[425117405,1781530241000,-209.40437684,0.0002029,2]
[425117448,1781530241000,-151.0,0.0002029,2]
[425117473,1781530241000,-151.0,0.0002029,2]
[425117475,1781530241000,-152.0,0.0002029,2]
[425117478,1781530241000,-1980.8648231,0.0002029,2]
[425117480,1781530241000,-152.0,0.0002029,2]
[425117487,1781530241000,-285.75873744,0.00020345,2]
[425117488,1781530241000,-151.0,0.00020345,2]
[425117492,1781530241000,-151.0,0.000204,2]
[425117491,1781530241000,-285.75873744,0.000204,2]
[425117489,1781530241000,-1321.9915,0.00020369,2]
[425117490,1781530241000,-775.4,0.00020381,2]
[425117496,1781530241000,-151.0,0.00020455,2]
[425117474,1781530241000,-500.0,0.0002029,2]
[425117494,1781530241000,-163.24447375,0.0002045,2]
[425117493,1781530241000,-254.37796769,0.000204,2]
[425117495,1781530241000,-285.75873744,0.00020455,2]
[425117499,1781530241000,-631.0,0.00020505,2]
[425117498,1781530241000,-1275.0,0.00020505,2]
[425117500,1781530241000,-1228.0,0.00020505,2]
[425117501,1781530241000,-285.75873744,0.0002051,2]
[425117505,1781530241000,-151.0,0.00020565,2]
[425117504,1781530241000,-285.75873744,0.00020565,2]
[425117502,1781530241000,-151.0,0.0002051,2]
[425117503,1781530241000,-9978.39,0.00020548,2]
[425117449,1781530241000,-1651.81367706,0.0002029,2]
[425117497,1781530241000,-1359.0,0.00020505,2]
[425117476,1781530241000,-151.0,0.0002029,2]
[425117427,1781530241000,-1481.2378076,0.0002029,2]
[425117470,1781530241000,-500.0,0.0002029,2]
[425117472,1781530241000,-1910.18787185,0.0002029,2]
[425117451,1781530241000,-152.0,0.0002029,2]
[425117452,1781530241000,-500.0,0.0002029,2]
[425117456,1781530241000,-500.0,0.0002029,2]
[425117454,1781530241000,-1712.93078311,0.0002029,2]
[425117453,1781530241000,-151.0,0.0002029,2]
[425117455,1781530241000,-151.0,0.0002029,2]
[425117458,1781530241000,-151.0,0.0002029,2]
[425117457,1781530241000,-152.0,0.0002029,2]
[425117459,1781530241000,-500.0,0.0002029,2]
[425117461,1781530241000,-151.0,0.0002029,2]
[425117462,1781530241000,-500.0,0.0002029,2]
[425117450,1781530241000,-500.0,0.0002029,2]
[425117469,1781530241000,-152.0,0.0002029,2]
[425117466,1781530241000,-1842.0326633,0.0002029,2]
[425117464,1781530241000,-151.0,0.0002029,2]
[425117467,1781530241000,-151.0,0.0002029,2]
[425117468,1781530241000,-500.0,0.0002029,2]
[425117463,1781530241000,-152.0,0.0002029,2]
[425117465,1781530241000,-500.0,0.0002029,2]
[425117471,1781530241000,-151.0,0.0002029,2]
[425117482,1781530241000,-151.0,0.0002029,2]
[425117486,1781530241000,-2054.15682156,0.0002029,2]
[425117484,1781530241000,-151.0,0.0002029,2]
[425117460,1781530241000,-1776.30922209,0.0002029,2]
[425117543,1781530242000,-49667.97564854,0.00021,2]
[425117541,1781530242000,-1942.64598707,0.00021,2]
[425117539,1781530242000,-519.0,0.00021,2]
[425117540,1781530242000,-235.0,0.00021,2]
[425117534,1781530242000,-285.75873756,0.0002084,2]
[425117538,1781530242000,-155.0,0.00021,2]
[425117536,1781530242000,-486.625296,0.0002093,2]
[425117535,1781530242000,-151.0,0.0002084,2]
[425117550,1781530242000,-151.0,0.00021,2]
[425117537,1781530242000,-1661.0,0.00021,2]
[425117552,1781530242000,-469.301051,0.00021,2]
[425117549,1781530242000,-154.0,0.00021,2]
[425117545,1781530242000,-200.0,0.00021,10]
[425117547,1781530242000,-151.0,0.00021,2]
[425117551,1781530242000,-151.0,0.00021,2]
[425117544,1781530242000,-175.0,0.00021,2]
[425117548,1781530242000,-969.0,0.00021,2]
[425117553,1781530242000,-469.301051,0.00021,2]
[425117556,1781530242000,-155.0,0.00021,2]
[425117554,1781530242000,-469.301051,0.00021,2]
[425117555,1781530242000,-469.301051,0.00021,2]
[425117562,1781530242000,-150.0,0.00021,2]
[425117531,1781530242000,-2157.14243826,0.00020838,2]
[425117546,1781530242000,-151.0,0.00021,2]
[425117533,1781530242000,-217.15233878,0.00020838,2]
[425117515,1781530242000,-211.32912,0.00020755,7]
[425117526,1781530242000,-217.15233878,0.00020838,2]
[425117507,1781530242000,-285.75873744,0.0002062,2]
[425117508,1781530242000,-151.0,0.0002062,2]
[425117506,1781530242000,-254.37796769,0.000206,2]
[425117509,1781530242000,-511.0,0.00020637,7]
[425117511,1781530242000,-285.75873744,0.00020675,2]
[425117510,1781530242000,-501.0,0.00020657,4]
[425117517,1781530242000,-170.20819984,0.00020766,2]
[425117513,1781530242000,-285.75873744,0.0002073,2]
[425117519,1781530242000,-971.63069432,0.00020766,2]
[425117516,1781530242000,-286.23516208,0.00020766,2]
[425117512,1781530242000,-151.0,0.00020675,2]
[425117532,1781530242000,-278.27669356,0.00020838,2]
[425117520,1781530242000,-285.75873744,0.00020785,2]
[425117559,1781530242000,-382.0,0.00021,2]
[425117518,1781530242000,-704.24887089,0.00020766,2]
[425117521,1781530242000,-151.0,0.00020785,2]
[425117522,1781530242000,-1000.0,0.00020794,2]
[425117530,1781530242000,-151.0,0.00020838,2]
[425117529,1781530242000,-151.0,0.00020838,2]
[425117523,1781530242000,-254.37796769,0.000208,2]
[425117527,1781530242000,-154.67963625,0.00020838,2]
[425117525,1781530242000,-404.46092719,0.00020838,2]
[425117528,1781530242000,-181.08010149,0.00020838,2]
[425117524,1781530242000,-200.0,0.00020838,2]
[425117514,1781530242000,-151.0,0.0002073,2]
[425117558,1781530242000,-282.0,0.00021,2]
[425117542,1781530242000,-941.312626,0.00021,2]
[425117561,1781530242000,-153.0,0.00021,2]
[425117589,1781530242000,-5000.0,0.00021918,2]
[425117595,1781530242000,-194.72792766,0.00021934,2]
[425117591,1781530242000,-200.0,0.00021934,2]
[425117593,1781530242000,-280.16800983,0.00021934,2]
[425117594,1781530242000,-154.67963625,0.00021934,2]
[425117592,1781530242000,-404.46092719,0.00021934,2]
[425117596,1781530242000,-151.0,0.00021934,2]
[425117598,1781530242000,-2319.72410669,0.00021934,2]
[425117603,1781530242000,-1661.0,0.00022,2]
[425117599,1781530242000,-233.5188934,0.00021934,2]
[425117606,1781530242000,-235.0,0.00022,2]
[425117600,1781530242000,-206.0,0.00021976,2]
[425117602,1781530242000,-450.0,0.00022,2]
[425117597,1781530242000,-151.0,0.00021934,2]
[425117601,1781530242000,-300.0,0.00022,3]
[425117604,1781530242000,-166.0,0.00022,2]
[425117605,1781530242000,-519.0,0.00022,2]
[425117609,1781530242000,-175.0,0.00022,2]
[425117608,1781530242000,-941.312626,0.00022,2]
[425117610,1781530242000,-969.0,0.00022,2]
[425117611,1781530242000,-154.0,0.00022,2]
[425117612,1781530242000,-155.0,0.00022,2]
[425117613,1781530242000,-282.0,0.00022,2]
[425117614,1781530242000,-382.0,0.00022,2]
[425117557,1781530242000,-151.0,0.00021,2]
[425117590,1781530242000,-150.0,0.00021918,2]
[425117587,1781530242000,-1942.64598707,0.000219,2]
[425117607,1781530242000,-1422.79,0.00022,2]
[425117585,1781530242000,-217.15233878,0.00021659,2]
[425117588,1781530242000,-195.646548,0.00021911,7]
[425117564,1781530242000,-300.0,0.000211,10]
[425117565,1781530242000,-741.93,0.000211,2]
[425117563,1781530242000,-464.150701,0.00021034,2]
[425117566,1781530242000,-151.73,0.00021178,2]
[425117573,1781530242000,-225.18697532,0.00021386,2]
[425117567,1781530242000,-1942.64598707,0.000212,2]
[425117568,1781530242000,-180.0,0.00021227,2]
[425117571,1781530242000,-200.0,0.00021386,2]
[425117570,1781530242000,-1505.19,0.00021288,2]
[425117569,1781530242000,-1342.36437871,0.00021266,2]
[425117572,1781530242000,-404.46092719,0.00021386,2]
[425117576,1781530242000,-151.0,0.00021386,2]
[425117560,1781530242000,-11111.0,0.00021,2]
[425117586,1781530242000,-152.0,0.00021859,3]
[425117577,1781530242000,-151.0,0.00021386,2]
[425117575,1781530242000,-187.78006524,0.00021386,2]
[425117579,1781530242000,-225.18697532,0.00021386,2]
[425117584,1781530242000,-9956.42,0.00021647,2]
[425117581,1781530242000,-491.8187233,0.00021477,2]
[425117578,1781530242000,-2236.95670847,0.00021386,2]
[425117580,1781530242000,-1942.64598707,0.000214,2]
[425117582,1781530242000,-501.0,0.00021543,5]
[425117583,1781530242000,-1942.64598707,0.000216,2]
[425117574,1781530242000,-154.67963625,0.00021386,2]
[425117669,1781530243000,-382.0,0.00023,2]
[425117670,1781530243000,-153.0,0.00023,2]
[425117672,1781530243000,-150.0,0.00023014,2]
[425117666,1781530243000,-154.0,0.00023,2]
[425117671,1781530243000,-192.887692,0.00023006,14]
[425117688,1781530243000,-501.0,0.00023314,6]
[425117675,1781530243000,-151.0,0.00023029,2]
[425117664,1781530243000,-175.0,0.00023,2]
[425117674,1781530243000,-747.80937859,0.00023029,2]
[425117668,1781530243000,-282.0,0.00023,2]
[425117665,1781530243000,-969.0,0.00023,2]
[425117667,1781530243000,-155.0,0.00023,2]
[425117678,1781530243000,-209.40437684,0.0002303,2]
[425117685,1781530243000,-150.0,0.0002326,21]
[425117679,1781530243000,-269.57145109,0.0002303,2]
[425117680,1781530243000,-157.78306428,0.0002303,2]
[425117684,1781530243000,-303.688818,0.00023185,14]
[425117682,1781530243000,-318.393704,0.0002307,14]
[425117683,1781530243000,-183.979252,0.00023121,14]
[425117681,1781530243000,-2494.55939288,0.0002303,2]
[425117686,1781530243000,-202.52,0.00023288,2]
[425117687,1781530243000,-9956.42,0.00023294,7]
[425117677,1781530243000,-404.46092719,0.0002303,2]
[425117689,1781530243000,-317.964483,0.00023376,7]
[425117673,1781530243000,-599.60298507,0.00023029,2]
[425117676,1781530243000,-200.0,0.0002303,2]
[425117660,1781530243000,-500.0,0.00023,3]
[425117619,1781530243000,-84492.837,0.00022156,7]
[425117661,1781530243000,-519.0,0.00023,2]
[425117693,1781530243000,-200.0,0.00023578,2]
[425117621,1781530243000,-153.8194,0.00022233,2]
[425117616,1781530243000,-3541.97,0.00022126,2]
[425117615,1781530243000,-153.0,0.00022,2]
[425117618,1781530243000,-505.15726097,0.00022155,2]
[425117622,1781530243000,-775.4,0.00022353,2]
[425117625,1781530243000,-430.67,0.00022466,2]
[425117630,1781530243000,-201.93286098,0.00022482,2]
[425117643,1781530243000,-268.219634,0.00022514,7]